fUSD/lending_fUSD_20240607
["ID","MTS","AMOUNT","RATE_DAILY","PERIOD"]
[328793449,1717789840851,-1733.85482657,0.00013998,2]
[328793450,1717789840861,-644.41493433,0.00013998,2]
[328793453,1717789840870,-404.06990715,0.00013998,2]
[328793455,1717789840880,-155.0,0.00013998,2]
[328793457,1717789840889,-526.77862897,0.00013998,2]
[328793459,1717789840899,-658.62502392,0.00013998,2]
[328793461,1717789840908,-344.12013033,0.00013998,2]
[328793463,1717789840917,-240.1418633,0.00013999,2]
[328793465,1717789840927,-431.72811163,0.00013999,2]
[328793467,1717789840939,-352.24181615,0.00013999,2]
[328793469,1717789840950,-377.79474196,0.00013999,2]
[328793471,1717789840960,-150.0,0.00013999,2]
[328793473,1717789840970,-259559.07812264,0.00014,2]
[328793475,1717789840983,-1668.02101365,0.00014,2]
[328793477,1717789840995,-2190.27743764,0.00014,2]
[328793479,1717789841007,-1567.2904403,0.00014,2]
[328793481,1717789841021,-5635.24233459,0.00014,2]
[328793484,1717789841034,-4886.7500001,0.00014,2]
[328793559,1717789842046,-11086.24012462,0.00014,2]
[328793560,1717789842058,-346.66,0.00014,2]
[328793570,1717789844396,-13464.73871,0.00014,2]
[328793573,1717789844408,-884.24749782,0.00014,2]
[328793575,1717789844420,-465.28584782,0.00014,2]
[328793578,1717789844431,-856.37811748,0.00014,2]
[328793580,1717789844442,-741.06013489,0.00014,2]
[328793583,1717789844454,-1386.18684448,0.00014,2]
[328793588,1717789844466,-3417.35158674,0.00014,2]
[328793591,1717789844478,-128002.3561243,0.00014,2]
[328793594,1717789844489,-980.29654891,0.00014,2]
[328793597,1717789844500,-529620.8328149,0.00014,2]
[328793607,1717789844566,-5720.21156842,0.00014,2]
[328793625,1717789846650,-1221.02049648,0.00013999,2]
[328793626,1717789846660,-1052.85767216,0.00013999,2]
[328793627,1717789846669,-720.87482838,0.00013999,2]
[328793628,1717789846679,-3931.44931266,0.00014,2]
[328793629,1717789846690,-1090.33825513,0.00014,2]
[328793631,1717789846702,-1003.38151828,0.00014,2]
[328793635,1717789846713,-1613.54671094,0.00014,2]
[328793640,1717789848890,-469.65,0.00013998,2]
[328793647,1717789848902,-72.08964529,0.00013998,2]
[328793651,1717789848913,-379.71757805,0.00013998,2]
[328793655,1717789848922,-188.94004386,0.00013998,2]
[328793660,1717789848935,-757.25445626,0.00013998,2]
[328793677,1717789850639,-267.80437177,0.00013998,2]
[328793678,1717789850648,-268.60905253,0.00013999,2]
[328793679,1717789850657,-1892.62420793,0.00014,2]
[328793680,1717789850707,-219171.28642743,0.00014,2]
[328793681,1717789850718,-750.52233814,0.00014,2]
[328793682,1717789850731,-99413.58670531,0.00014,2]
[328793683,1717789850742,-130810.00000005,0.00014,2]
[328793684,1717789850930,-3186.68063998,0.00014,2]
[328793685,1717789850943,-275.919,0.00014,2]
[328793686,1717789850956,-2269.0833566,0.00014,2]
[328793691,1717790246659,-1052.85767216,0.00010093,2]
[328793692,1717790398948,4393.63616307,9.993e-05,2]
[328793693,1717790428056,182.73,9.916e-05,2]
[328793694,1717790536745,163.6,9.905e-05,2]
[328793695,1717790589383,2201.0122251,0.0003,40]
[328793712,1717790964500,182.73,9.826e-05,2]
[328793721,1717791032416,-1052.85767216,0.00010298,2]
[328793722,1717791032427,-180.49244644,0.00010299,2]
[328793723,1717791032440,-531.5763,0.00010399,2]
[328793724,1717791032450,-1728.96439159,0.00010499,2]
[328793725,1717791032464,-689.22,0.0001051,2]
[328793726,1717791032473,-250.0,0.00012291,2]
[328793727,1717791032484,-1893.22,0.00012309,2]
[328793728,1717791032494,-150.0,0.00012326,2]
[328793729,1717791032503,-6148.65128251,0.00012327,2]
[328793730,1717791032519,-2268.68775,0.00012327,2]
[328793731,1717791032530,-2717.46216656,0.00012327,2]
[328793732,1717791032542,-1450.33475788,0.00012327,2]
[328793733,1717791032571,-9319.86404305,0.00012327,2]
[328793734,1717791032581,-499.99,0.00012327,2]
[328793735,1717791032591,-1000.0,0.00012349,2]
[328793736,1717791032601,-250.0,0.00012349,2]
[328793737,1717791032611,-14731.34167464,0.00012361,2]
[328793738,1717791032624,-566.55211337,0.00012361,2]
[328793739,1717791032635,-4453.55193141,0.00012361,2]
[328793740,1717791032647,-693.19250001,0.00012361,2]
[328793741,1717791032659,-2192.68833918,0.00012361,2]
[328793742,1717791032671,-1262.67344139,0.00012361,2]
[328793743,1717791032680,-488.52,0.00012382,2]
[328793744,1717791032690,-759.95,0.00012397,2]
[328793745,1717791032699,-150.0,0.000124,2]
[328793746,1717791032714,-5041.15,0.00012403,2]
[328793747,1717791032723,-737.59953859,0.00012408,2]
[328793748,1717791032735,-452.17495054,0.00012408,2]
[328793749,1717791032761,-740.58240107,0.00012408,2]
[328793750,1717791032773,-115.2631098,0.00012408,2]
[328793751,1717791032783,-150.0,0.0001245,2]
[328793752,1717791032792,-150.0,0.00012522,2]
[328793753,1717791032802,-85.27662023,0.00012594,2]
[328793754,1717791032813,-64.72337977,0.00012594,2]
[328793755,1717791032823,-931.15207899,0.00012634,2]
[328793756,1717791032851,-68.84792101,0.00012634,2]
[328793757,1717791032862,-150.0,0.00012666,2]
[328793758,1717791032872,-150.0,0.00012738,2]
[328793759,1717791032882,-689.22,0.00012774,2]
[328793760,1717791032891,-150.0,0.0001281,2]
[328793761,1717791032901,-150.0,0.00012882,2]
[328793762,1717791032910,-150.0,0.00012954,2]
[328793763,1717791032920,-150.0,0.00013026,2]
[328793765,1717791032929,-150.0,0.00013098,2]
[328793767,1717791032939,-2678.99,0.00013576,2]
[328793769,1717791032950,-2678.99,0.0001358,2]
[328793770,1717791032962,-2678.99,0.00013583,2]
[328793771,1717791032971,-2678.99,0.00013587,2]
[328793772,1717791032981,-2678.99,0.00013591,2]
[328793773,1717791032990,-757.61343909,0.00013594,2]
[328793774,1717791033002,-1581.72744129,0.00013594,2]
[328793775,1717791033014,-339.64911962,0.00013594,2]
[328793776,1717791033024,-707.35088038,0.00013598,2]
[328793777,1717791033035,-1971.63911962,0.00013598,2]
[328793778,1717791033044,-2678.99,0.00013601,2]
[328793779,1717791033054,-3.81088038,0.00013605,2]
[328793780,1717791033070,-2675.17911962,0.00013605,2]
[328793781,1717791033079,-686.66088028,0.00013608,2]
[328793788,1717791038175,-406.62465283,0.00013608,2]
[328793789,1717791038332,-464.91397209,0.00013608,2]
[328793790,1717791038490,-714.662132,0.00013608,2]
[328793791,1717791038502,-263.8,0.00013608,2]
[328793792,1717791038583,-142.3283628,0.00013608,2]
[328793793,1717791038595,-2678.99,0.00013612,2]
[328793794,1717791038605,-2678.99,0.00013616,2]
[328793795,1717791038615,-1206.3916372,0.00013619,2]
[328793796,1717791038627,-332.5,0.00013619,2]
[328793797,1717791038639,-1140.0983628,0.00013619,2]
[328793798,1717791038648,-2678.99,0.00013623,2]
[328793799,1717791038658,-2678.99,0.00013626,2]
[328793800,1717791038668,-2678.99,0.0001363,2]
[328793801,1717791038677,-2678.99,0.00013633,2]
[328793802,1717791038687,-2678.99,0.00013637,2]
[328793803,1717791038697,-2678.99,0.0001364,2]
[328793804,1717791038706,-2678.99,0.00013644,2]
[328793805,1717791038718,-824.04,0.00013699,2]
[328793806,1717791038729,-2751.0,0.00013699,2]
[328793807,1717791038739,-757.3,0.00013699,2]
[328793808,1717791038749,-1308.81107975,0.0001372,2]
[328793809,1717791038759,-1000.0,0.00013893,2]
[328793810,1717791038768,-174.72044621,0.000139,2]
[328793811,1717791038778,-900.53482002,0.000139,2]
[328793813,1717791038787,-8045.40502423,0.000139,2]
[328793814,1717791038797,-161.72213921,0.000139,2]
[328793816,1717791038806,-211.84353316,0.000139,2]
[328793818,1717791038816,-6579.5487772,0.000139,2]
[328793820,1717791038825,-322.35578445,0.000139,2]
[328793823,1717791038845,-168.04253375,0.000139,2]
[328793825,1717791038856,-150.15136608,0.000139,2]
[328793827,1717791038865,-382.01150973,0.00013909,2]
[328793828,1717791038875,-151.2,0.0001399,2]
[328793829,1717791038885,-151.2,0.0001399,2]
[328793831,1717791038895,-151.2,0.0001399,2]
[328793832,1717791038905,-151.2,0.0001399,2]
[328793833,1717791038915,-151.2,0.0001399,2]
[328793834,1717791038925,-151.2,0.0001399,2]
[328793835,1717791038934,-471.42,0.0001399,3]
[328793836,1717791038945,-1552.54688165,0.00013998,2]
[328793837,1717791038955,-271.59164484,0.00013998,2]
[328793838,1717791038967,-385.92517951,0.00013998,2]
[328793839,1717791038977,-623.35333842,0.00013998,2]
[328793840,1717791038986,-155.89388956,0.00013998,2]
[328793841,1717791038996,-236.90082346,0.00013998,2]
[328793842,1717791039006,-197.06349939,0.00013998,2]
[328793843,1717791039016,-377.79474196,0.00013998,2]
[328793844,1717791039026,-431.72811163,0.00013998,2]
[328793845,1717791039036,-352.24181615,0.00013998,2]
[328793846,1717791039047,-240.1418633,0.00013998,2]
[328793847,1717791039058,-155.0,0.00013998,2]
[328793848,1717791039068,-526.77862897,0.00013998,2]
[328793849,1717791039079,-658.62502392,0.00013998,2]
[328793850,1717791039089,-388.07134055,0.00013998,2]
[328793851,1717791039100,-644.41493433,0.00013998,2]
[328793852,1717791039111,-1733.85482657,0.00013998,2]
[328793853,1717791039121,-254.55814076,0.00013998,2]
[328793854,1717791039132,-244.32990357,0.00013998,2]
[328793855,1717791039143,-1941.10780934,0.00013999,2]
[328793856,1717791039153,-2540.86198761,0.00013999,2]
[328793857,1717791039164,-14629.05260854,0.00013999,2]
[328793858,1717791039174,-246.15590618,0.00013999,5]
[328793859,1717791039185,-150.0,0.00013999,2]
[328793860,1717791039196,-199961.81472143,0.00014,2]
[328793861,1717791039210,-1001.6020927,0.00014,2]
[328793862,1717791039223,-2706.97602747,0.00014,2]
[328793863,1717791039235,-1732.02650128,0.00014,2]
[328793864,1717791039257,-4771.74999926,0.00014,2]
[328793865,1717791039270,-8927.05000028,0.00014,2]
[328793871,1717791040897,-850.24946448,0.00014,2]
[328793872,1717791040969,-3268.0669238,0.00014,2]
[328793873,1717791041819,-1408.02620954,0.00014,2]
[328793874,1717791041831,-380.43487415,0.00014,2]
[328793875,1717791041844,-1382.19034372,0.00014,2]
[328793876,1717791041856,-357.30417766,0.00014,2]
[328793877,1717791041927,-6723.4,0.00014,2]
[328793878,1717791042014,-14710.51703697,0.00014,2]
[328793879,1717791042101,-810.011345,0.00014,2]
[328793887,1717791043371,-329.65201519,0.00014,2]
[328793888,1717791043835,-6944.2,0.00014,2]
[328793898,1717791046367,-157.14,0.0001399,3]
[328793900,1717791046379,-884.93499,0.00014,2]
[328793915,1717791046678,-19599.54278,0.00014,2]
[328793917,1717791049837,947.35180722,9.826e-05,2]
[328793918,1717791052387,-820.71106069,0.00013998,2]
[328793919,1717791052402,-7594.57787862,0.00013998,2]
[328793920,1717791052412,-820.71106069,0.00013999,2]
[328793921,1717791085269,-155.69003604,0.00012598,2]
[328793922,1717791085309,-957.32584388,0.00013298,2]
[328793923,1717791085343,-471.45,0.0001399,3]
[328793924,1717791085379,-263.62581916,0.00013998,2]
[328793925,1717791085414,-862.13999275,0.00013998,2]
[328793926,1717791085454,-155.69003604,0.00013998,2]
[328793927,1717791085466,-957.32584388,0.00013998,2]
[328793928,1717791085477,-471.45,0.00013998,2]
[328793929,1717791085489,-263.62581916,0.00013998,2]
[328793930,1717791085507,-862.13999275,0.00013998,2]
[328793931,1717791085518,-1959.53661634,0.00013998,2]
[328793935,1717791122924,-2552.72528865,0.00010499,2]
[328793936,1717791122958,-957.66762831,0.00013298,2]
[328793937,1717791122989,-155.0,0.00013858,2]
[328793938,1717791123022,-1052.85767216,0.00013898,2]
[328793939,1717791123055,-625.89538925,0.00013899,2]
[328793940,1717791123103,-429.60506688,0.00013899,2]
[328793941,1717791123132,-2335.70101797,0.00013899,2]
[328793942,1717791123142,-217.02427068,0.000139,2]
[328793943,1717791123155,-534.93861924,0.000139,2]
[328793944,1717791123165,-185.89877539,0.000139,2]
[328793945,1717791123174,-236.83023368,0.00013996,2]
[328793946,1717791123197,-150.0,0.00013898,2]
[328793947,1717791123207,-5.0,0.00013996,2]
[328793948,1717791123219,-620.30975907,0.00013996,2]
[328793949,1717791123229,-432.54791309,0.00013996,2]
[328793950,1717791123241,-625.89538925,0.00013996,2]
[328793951,1717791123254,-429.60506688,0.00013996,2]
[328793952,1717791123266,-64.49851243,0.00013996,2]
[328793953,1717791123276,-187.99939707,0.00013996,2]
[328793972,1717791197227,-537.53978765,0.00010397,2]
[328793973,1717791197251,-1620.01643354,0.00010398,2]
[328793974,1717791197274,-1296.0,0.00010495,2]
[328793975,1717791197298,-2369.6656037,0.00010497,2]
[328793977,1717791197322,-2552.72528865,0.00010497,2]
[328793978,1717791197345,-6967.35893554,0.00012383,2]
[328793979,1717791197370,-705.27,0.00012384,2]
[328793980,1717791197394,-10971.90868473,0.000124,2]
[328793981,1717791197423,-314.93996246,0.00013296,2]
[328793982,1717791197446,-739.57530373,0.00013298,2]
[328793991,1717791229514,-1275.23557742,0.00010497,2]
[328793992,1717791229538,-163.16,0.00011116,2]
[328793993,1717791229564,-7955.60442258,0.00013227,2]
[328793994,1717791262499,-155.0,0.00013161,2]
[328793995,1717791262533,-1000.0,0.00013162,2]
[328793996,1717791262557,-345.57209114,0.00013225,2]
[328793997,1717791262582,-217.32072534,0.00013226,2]
[328793998,1717791262606,-2578.6850833,0.00013227,2]
[328793999,1717791262630,-2350.469972,0.00013228,2]
[328794000,1717791262655,-1052.85767216,0.00013295,2]
[328794001,1717791262686,-7800.09445606,0.00013297,2]
[328794005,1717791737245,618.75932383,0.00025,120]
[328794025,1717792002334,1052.85767216,0.0001023,2]
[328794026,1717792055726,35471.4319558,0.00010229,2]
[328794027,1717792073231,2193.53962537,0.00010229,2]
[328794028,1717792075979,481.77513052,0.00010229,2]
[328794029,1717792091975,410.69975604,0.00010229,2]
[328794030,1717792095513,299.65504071,0.00010229,2]
[328794031,1717792097505,180.63274468,0.00010229,2]
[328794032,1717792100259,155.0,0.00010229,2]
[328794033,1717792104840,289.80585729,0.00010229,2]
[328794034,1717792107251,19772.25380289,0.00010229,2]
[328794035,1717792109984,410.69975604,0.00010229,2]
[328794036,1717792113523,299.65504071,0.00010229,2]
[328794037,1717792115506,180.63274468,0.00010229,2]
[328794038,1717792122825,289.37321555,0.00010229,2]
[328794039,1717792123243,9845.787325,0.00010229,2]
[328794040,1717792123986,410.69975604,0.00010229,2]
[328794041,1717792124405,287.48820092,0.00010229,2]
[328794042,1717792132023,299.65504071,0.00010229,2]
[328794043,1717792135505,180.17998581,0.00010229,2]
[328794051,1717792146028,229.42669901,0.00010229,2]
[328794052,1717792149987,410.69975604,0.00010229,2]
[328794053,1717792171998,410.69975604,0.00010229,2]
[328794054,1717792189996,410.69975604,0.00010229,2]
[328794055,1717792209997,410.69975604,0.00010229,2]
[328794056,1717792227993,410.69975604,0.00010229,2]
[328794064,1717792231688,-172.46,0.00010242,2]
[328794065,1717792231697,-670.0,0.00010929,2]
[328794066,1717792231707,-1172.83501095,0.00012253,2]
[328794067,1717792231744,-88.63498905,0.00012253,2]
[328794068,1717792231755,-1052.85767216,0.00012266,2]
[328794069,1717792231767,-250.0,0.00012267,2]
[328794070,1717792231779,-739.60794231,0.0001227,2]
[328794071,1717792231792,-260.39205769,0.0001227,2]
[328794072,1717792231802,-3394.8383364,0.00012288,2]
[328794073,1717792231968,-20505.1616636,0.00012288,2]
[328794074,1717792231978,-166.26,0.0001231,2]
[328794075,1717792231989,-250.0,0.0001234,2]
[328794076,1717792231998,-994.65,0.00012847,2]
[328794077,1717792232008,-994.65,0.0001285,2]
[328794078,1717792232018,-994.65,0.00012853,2]
[328794079,1717792232027,-994.65,0.00012857,2]
[328794080,1717792232037,-994.65,0.0001286,2]
[328794081,1717792232047,-994.65,0.00012864,2]
[328794082,1717792232056,-994.65,0.00012867,2]
[328794083,1717792232066,-994.65,0.0001287,2]
[328794084,1717792232076,-994.65,0.00012874,2]
[328794085,1717792232086,-994.65,0.00012877,2]
[328794086,1717792232095,-994.65,0.0001288,2]
[328794087,1717792232105,-994.65,0.00012884,2]
[328794088,1717792232115,-994.65,0.00012887,2]
[328794089,1717792232124,-994.65,0.00012891,2]
[328794090,1717792232133,-994.65,0.00012894,2]
[328794091,1717792232143,-994.65,0.00012897,2]
[328794092,1717792232153,-994.65,0.00012901,2]
[328794093,1717792232163,-994.65,0.00012904,2]
[328794094,1717792232173,-994.65,0.00012907,2]
[328794095,1717792232183,-994.65,0.00012911,2]
[328794096,1717792232193,-670.0,0.00013193,2]
[328794097,1717792232203,-352.18715032,0.00013295,2]
[328794098,1717792232212,-387.81889676,0.00013295,2]
[328794099,1717792232222,-2537.35288201,0.00013295,2]
[328794100,1717792232231,-156.46996708,0.00013296,2]
[328794101,1717792232243,-217.60839772,0.00013298,2]
[328794102,1717792232253,-625.51327285,0.00013436,2]
[328794103,1717792232262,-172.29,0.00013566,2]
[328794104,1717792232271,-941.2,0.00013699,2]
[328794105,1717792232281,-2751.0,0.00013699,2]
[328794106,1717792232290,-757.3,0.00013699,2]
[328794107,1717792232300,-1308.81107975,0.00013716,2]
[328794108,1717792232309,-1000.0,0.00013803,2]
[328794109,1717792232319,-687.1821,0.00013896,2]
[328794110,1717792232329,-266.92479424,0.00013896,2]
[328794112,1717792232338,-205.49265367,0.00013896,2]
[328794113,1717792232348,-200.64995616,0.00013896,2]
[328794116,1717792232358,-4286.86690961,0.00013896,2]
[328794117,1717792232369,-187.46921704,0.00013897,2]
[328794119,1717792232383,-8045.40502423,0.000139,2]
[328794121,1717792232392,-174.72044621,0.000139,2]
[328794123,1717792232401,-1780.67097297,0.000139,2]
[328794125,1717792232411,-178.66572056,0.000139,2]
[328794127,1717792232421,-211.84353316,0.000139,2]
[328794129,1717792232431,-156.35946454,0.000139,2]
[328794131,1717792232440,-319.18832261,0.000139,2]
[328794133,1717792232450,-254.20254976,0.000139,2]
[328794135,1717792232460,-364.68639106,0.000139,2]
[328794137,1717792232470,-382.01150973,0.00013905,2]
[328794139,1717792232479,-1107.77182727,0.00013984,2]
[328794141,1717792232492,-480.71658104,0.00013984,2]
[328794143,1717792232502,-19066.21836906,0.00013985,2]
[328794146,1717792232514,-778.63384695,0.00013985,2]
[328794148,1717792232526,-538.88,0.00013985,2]
[328794151,1717792232547,-8698.57941669,0.00013985,2]
[328794153,1717792232559,-604.135,0.00013985,2]
[328794156,1717792232576,-3252.89222665,0.00013985,2]
[328794157,1717792232585,-1765.94483226,0.00013986,2]
[328794159,1717792232596,-5741.72500794,0.00013986,2]
[328794161,1717792232605,-785.7,0.00013986,3]
[328794162,1717792232615,-206.60101264,0.0001399,2]
[328794163,1717792232624,-206.60101264,0.0001399,2]
[328794164,1717792232634,-206.60101264,0.0001399,2]
[328794165,1717792232644,-151.2,0.0001399,2]
[328794166,1717792232653,-151.2,0.0001399,2]
[328794167,1717792232663,-151.2,0.0001399,2]
[328794168,1717792232673,-151.2,0.0001399,2]
[328794169,1717792232683,-151.2,0.0001399,2]
[328794170,1717792232692,-151.2,0.0001399,2]
[328794171,1717792232701,-9.06410232,0.00013996,2]
[328794172,1717792232711,-3649.94087182,0.00013996,2]
[328794173,1717792232727,-2253.71037969,0.00013996,2]
[328794174,1717792232740,-2511.6376878,0.00013996,2]
[328794175,1717792232750,-3825.0079451,0.00013996,2]
[328794176,1717792232775,-3712.31153685,0.00013996,2]
[328794177,1717792232786,-271.59164484,0.00013996,2]
[328794178,1717792232796,-431.72811163,0.00013996,2]
[328794179,1717792232806,-2329.89328842,0.00013996,2]
[328794180,1717792232816,-169.88391826,0.00013996,2]
[328794181,1717792232828,-400.32624251,0.00013996,2]
[328794182,1717792232838,-155.0,0.00013998,2]
[328794183,1717792232848,-755.38230014,0.00013998,2]
[328794184,1717792232861,-3252.16784281,0.00013998,2]
[328794185,1717792232879,-433.37757206,0.00013998,2]
[328794186,1717792232889,-240.1418633,0.00013998,2]
[328794187,1717792232898,-18.43056464,0.00013998,2]
[328794188,1717792232910,-1922.6772447,0.00013998,2]
[328794189,1717792232920,-244.32990357,0.00013998,2]
[328794190,1717792232930,-644.41493433,0.00013998,2]
[328794191,1717792232940,-1313.5779179,0.00013998,2]
[328794192,1717792232951,-3608.25046649,0.00013998,2]
[328794193,1717792232961,-597.73669643,0.00013998,2]
[328794194,1717792233108,-60.88832749,0.00013998,2]
[328794195,1717792233118,-623.35333842,0.00013998,2]
[328794196,1717792233127,-718.87490575,0.00013998,2]
[328794197,1717792233137,-1733.85482657,0.00013998,2]
[328794198,1717792233147,-236.90082346,0.00013998,2]
[328794199,1717792233156,-155.0,0.00013998,2]
[328794200,1717792233166,-385.92517951,0.00013998,2]
[328794201,1717792233176,-377.79474196,0.00013998,2]
[328794202,1717792233185,-526.77862897,0.00013998,2]
[328794203,1717792233196,-155.0,0.00013998,2]
[328794204,1717792233206,-155.89388956,0.00013998,2]
[328794205,1717792233215,-155.0,0.00013998,2]
[328794206,1717792233225,-254.55814076,0.00013998,2]
[328794207,1717792233234,-210.663932,0.00013998,2]
[328794208,1717792233247,-1562.98262843,0.00013998,2]
[328794209,1717792233262,-804.17323021,0.00013998,2]
[328794210,1717792233272,-4699.61480471,0.00013999,2]
[328794211,1717792233281,-623.43996508,0.00013999,2]
[328794212,1717792233299,-5695.5,0.00013999,2]
[328794217,1717792237940,-657.96752868,0.000139,2]
[328794218,1717792237952,-507.04005232,0.00013999,2]
[328794219,1717792238405,-344.51975223,0.00013999,2]
[328794220,1717792238418,-22281.08576953,0.00013999,2]
[328794221,1717792238432,-1755.04536784,0.00013999,2]
[328794222,1717792238467,-675.40068488,0.00013999,2]
[328794223,1717792238479,-4288.7768895,0.00013999,2]
[328794224,1717792238494,-1212.10520907,0.00013999,2]
[328794226,1717792238506,-1703.41591,0.00013999,2]
[328794227,1717792238527,-1078.0799953,0.00013999,2]
[328794228,1717792238539,-1095.36771121,0.00013999,2]
[328794230,1717792238551,-1840.7599115,0.00013999,2]
[328794231,1717792238563,-11877.73437668,0.00013999,2]
[328794232,1717792238574,-1847.439928,0.00013999,2]
[328794233,1717792238587,-30035.65315604,0.00013999,2]
[328794235,1717792238596,-246.15590618,0.00013999,5]
[328794236,1717792238606,-150.0,0.00013999,2]
[328794238,1717792238616,-243477.13393601,0.00014,2]
[328794240,1717792238627,-430.50166444,0.00014,2]
[328794269,1717792240510,-416.7563322,0.00014,2]
[328794270,1717792240523,-1624.92627223,0.00014,2]
[328794271,1717792240536,-3878.25499976,0.00014,2]
[328794272,1717792240574,-258.86173321,0.00014,2]
[328794273,1717792240639,-6242.66587894,0.00014,2]
[328794274,1717792240698,-1899.99999999,0.00014,2]
[328794275,1717792241639,-1048.0,0.00014,2]
[328794276,1717792241696,-1009.71667059,0.00014,2]
[328794277,1717792241709,-340.0090999,0.00014,2]
[328794278,1717792241721,-953.445,0.00014,2]
[328794279,1717792241733,-2088.72954451,0.00014,2]
[328794280,1717792241751,-306329.26061162,0.00014,2]
[328794340,1717792243656,-713.75913848,0.00014,2]
[328794341,1717792243823,-307.00568625,0.00014,2]
[328794342,1717792244120,-10394.25069797,0.00014,2]
[328794343,1717792244175,-3850.74999999,0.00014,2]
[328794344,1717792244187,-1509.28050412,0.00014,2]
[328794345,1717792244230,-3977.57470231,0.00014,2]
[328794375,1717792245997,410.69975604,0.00010229,2]
[328794376,1717792246797,-176.41950673,0.00013999,2]
[328794377,1717792246807,-16977.14049327,0.00014,2]
[328794378,1717792246819,-597.16738723,0.00014,2]
[328794379,1717792246832,-1381.77622,0.00014,2]
[328794380,1717792246851,-647.88682808,0.00014,2]
[328794381,1717792246907,-949.65,0.00014,2]
[328794382,1717792246965,-3272.35512418,0.00014,2]
[328794383,1717792246977,-264.208,0.00014,2]
[328794384,1717792246990,-700.0,0.00014,2]
[328794385,1717792247003,-4045.83117806,0.00014,2]
[328794386,1717792247015,-6330.0,0.00014,2]
[328794395,1717792247315,-137043.07027909,0.00014,2]
[328794397,1717792247330,-598.44585247,0.00014,2]
[328794399,1717792247342,-459.4508895,0.00014,2]
[328795201,1717792263988,410.69975604,0.00010229,2]
[328795204,1717792470226,1418.42502626,6.94e-05,2]
[328795208,1717792632858,209.66709316,0.0001,2]
[328795209,1717792831662,180.60886659,0.0001,2]
[328795210,1717792837716,628.44,0.00010215,2]
[328795211,1717792852465,172.46,9.558e-05,2]
[328795212,1717792925357,18522.64233665,9.558e-05,2]
[328795213,1717793005955,155.0,0.00010551,2]
[328795214,1717793010419,844.99174,0.00010551,2]
[328795215,1717793013446,-1992.55811252,0.00010504,2]
[328795216,1717793013471,-2030.04267147,0.00010551,2]
[328795217,1717793013494,-155.0,0.00010551,2]
[328795218,1717793013520,-2407.06195,0.00010552,2]
[328795219,1717793013548,-327.87677653,0.00010604,2]
[328795220,1717793013572,-887.46048948,0.00010604,2]
[328795221,1717793049179,-163.21533727,0.00010499,2]
[328795222,1717793049204,-1624.71052526,0.000105,2]
[328795223,1717793049229,-158.2910291,0.00010501,2]
[328795224,1717793049253,-235.01777921,0.00010501,2]
[328795225,1717793049500,-195.68427479,0.00010501,2]
[328795226,1717793049527,-506.54758575,0.00010502,2]
[328795227,1717793049552,-155.0,0.00010502,2]
[328795228,1717793049578,-155.0,0.00010503,2]
[328795229,1717793049608,-4761.53346862,0.00010602,2]
[328795230,1717793052476,-205.94174335,0.00010499,2]
[328795231,1717793052502,-625.52085008,0.00010499,2]
[328795232,1717793081191,-2776.18494342,0.00010602,2]
[328795233,1717793081218,-155.0,0.00010603,2]
[328795234,1717793081244,-237.35246315,0.00010603,2]
[328795235,1717793098074,-327.87677653,0.00010602,2]
[328795236,1717793098101,-4597.12322347,0.00010603,2]
[328795239,1717793155637,-235.01777921,0.00010546,2]
[328795240,1717793155662,-296.68069609,0.00010547,2]
[328795241,1717793155695,-2258.3015247,0.00010548,2]
[328795242,1717793185327,739.57530373,0.00010073,2]
[328795243,1717793221297,-1052.85767216,0.000105,2]
[328795244,1717793221333,-165.03454232,0.00010501,2]
[328795245,1717793221384,-395.21557104,0.00010599,2]
[328795246,1717793314911,-1276.71140513,0.00010597,2]
[328795247,1717793314934,-10534.28950588,0.00010598,2]
[328795248,1717793314957,-323.88689165,0.00010599,2]
[328795249,1717793314981,-2367.76414269,0.00010599,2]
[328795250,1717793315004,-236.47646617,0.000106,2]
[328795251,1717793315028,-296.41521367,0.000106,2]